[Event "Titled Tuesday Blitz June 6 Late 2023"]
[White "Pavlidou, Ekaterini"]
[Black "Martic, Ivan"]
[WhiteFideId "4213262"]
[BlackFideId "929301"]
[WhiteElo "2126"]
[BlackElo "2346"]
[Result "1/2-1/2"]
[Round "1"]
[TimeControl "180+2"]
[Date "2023.06.07"]
[WhiteClock "0:00:38"]
[BlackClock "0:00:35"]
[Board "127"]

1. d4 {[%clk 0:02:55]}  Nf6 {[%clk 0:02:59]} 2. c4 {[%clk 0:02:55]}  g6 {[%clk 0:03:00]} 3. Nc3 {[%clk 0:02:54]}  Bg7 {[%clk 0:03:00]} 4. e4 {[%clk 0:02:54]}  d6 {[%clk 0:03:01]} 5. Be2 {[%clk 0:02:54]}  O-O {[%clk 0:03:01]} 6. Be3 {[%clk 0:02:55]}  e5 {[%clk 0:02:59]} 7. d5 {[%clk 0:02:54]}  Na6 {[%clk 0:02:59]} 8. Nf3 {[%clk 0:02:50]}  Nh5 {[%clk 0:02:45]} 9. g3 {[%clk 0:02:46]}  c6 {[%clk 0:02:39]} 10. Nd2 {[%clk 0:02:37]}  Nf6 {[%clk 0:02:36]} 11. g4 {[%clk 0:02:33]}  Ne8 {[%clk 0:02:31]} 12. h4 {[%clk 0:02:30]}  f5 {[%clk 0:02:31]} 13. gxf5 {[%clk 0:02:27]}  gxf5 {[%clk 0:02:32]} 14. exf5 {[%clk 0:02:24]}  Bxf5 {[%clk 0:02:33]} 15. dxc6 {[%clk 0:02:15]}  bxc6 {[%clk 0:02:34]} 16. Nde4 {[%clk 0:02:13]}  Nac7 {[%clk 0:02:23]} 17. h5 {[%clk 0:02:07]}  h6 {[%clk 0:02:11]} 18. Rg1 {[%clk 0:02:04]}  Kh7 {[%clk 0:02:12]} 19. Ng3 {[%clk 0:02:02]}  Be6 {[%clk 0:02:07]} 20. Qc2+ {[%clk 0:01:59]}  Kh8 {[%clk 0:02:08]} 21. O-O-O {[%clk 0:01:51]}  Qe7 {[%clk 0:02:08]} 22. Bd3 {[%clk 0:01:45]}  d5 {[%clk 0:02:06]} 23. Bd2 {[%clk 0:01:16]}  e4 {[%clk 0:02:00]} 24. Bxe4 {[%clk 0:01:12]}  dxe4 {[%clk 0:02:01]} 25. Ncxe4 {[%clk 0:01:11]}  Rb8 {[%clk 0:01:52]} 26. Bc3 {[%clk 0:01:11]}  Nf6 {[%clk 0:01:52]} 27. Nxf6 {[%clk 0:01:03]}  Rxf6 {[%clk 0:01:51]} 28. Ne4 {[%clk 0:01:02]}  Rbf8 {[%clk 0:01:36]} 29. Rxg7 {[%clk 0:01:00]}  Qxg7 {[%clk 0:01:37]} 30. Nxf6 {[%clk 0:00:56]}  Rxf6 {[%clk 0:01:35]} 31. Qd2 {[%clk 0:00:54]}  Kh7 {[%clk 0:01:28]} 32. Qd8 {[%clk 0:00:42]}  Qg5+ {[%clk 0:00:44]} 33. Rd2 {[%clk 0:00:40]}  Qg1+ {[%clk 0:00:36]} 34. Rd1 {[%clk 0:00:37]}  Qg5+ {[%clk 0:00:36]} 35. Rd2 {[%clk 0:00:38]}  Qg1+ {[%clk 0:00:35]} 36. Rd1 {[%clk 0:00:38]}  Qg5+ {[%clk 0:00:35]} 1/2-1/2


[Site "https://www.chess.com"]

[Event "Titled Tuesday Blitz June 6 Late 2023"]
[White "Gubajdullin, Alexei"]
[Black "Djabri,Massinas"]
[WhiteFideId "4141202"]
[BlackFideId "7905726"]
[WhiteElo "2279"]
[BlackElo "2194"]
[Result "1/2-1/2"]
[Round "1"]
[TimeControl "180+2"]
[Date "2023.06.07"]
[WhiteClock "0:00:18"]
[BlackClock "0:00:12"]
[Board "130"]

1. d4 {[%clk 0:03:00]}  Nf6 {[%clk 0:02:58]} 2. Nf3 {[%clk 0:03:00]}  g6 {[%clk 0:02:56]} 3. Bf4 {[%clk 0:03:00]}  Bg7 {[%clk 0:02:55]} 4. e3 {[%clk 0:03:00]}  O-O {[%clk 0:02:56]} 5. Be2 {[%clk 0:03:01]}  d6 {[%clk 0:02:56]} 6. O-O {[%clk 0:03:01]}  c5 {[%clk 0:02:56]} 7. c3 {[%clk 0:02:59]}  Be6 {[%clk 0:02:54]} 8. Nbd2 {[%clk 0:02:53]}  Qb6 {[%clk 0:02:52]} 9. dxc5 {[%clk 0:02:47]}  dxc5 {[%clk 0:02:51]} 10. Qc2 {[%clk 0:02:47]}  Nc6 {[%clk 0:02:41]} 11. e4 {[%clk 0:02:46]}  Nh5 {[%clk 0:02:37]} 12. Be3 {[%clk 0:02:45]}  Rac8 {[%clk 0:02:31]} 13. Bc4 {[%clk 0:02:42]}  Bxc4 {[%clk 0:02:24]} 14. Nxc4 {[%clk 0:02:42]}  Qa6 {[%clk 0:02:24]} 15. Qe2 {[%clk 0:02:25]}  Na5 {[%clk 0:01:45]} 16. Nfd2 {[%clk 0:02:23]}  Rfd8 {[%clk 0:01:45]} 17. g4 {[%clk 0:01:49]}  Nf6 {[%clk 0:01:24]} 18. b3 {[%clk 0:01:38]}  Nxc4 {[%clk 0:00:50]} 19. bxc4 {[%clk 0:01:37]}  Nd7 {[%clk 0:00:48]} 20. Rac1 {[%clk 0:01:23]}  Ne5 {[%clk 0:00:40]} 21. f4 {[%clk 0:01:20]}  Nd3 {[%clk 0:00:39]} 22. Rc2 {[%clk 0:01:20]}  Qa4 {[%clk 0:00:37]} 23. Nb3 {[%clk 0:01:20]}  Qxc4 {[%clk 0:00:31]} 24. e5 {[%clk 0:01:17]}  Qe4 {[%clk 0:00:20]} 25. Nd2 {[%clk 0:01:13]}  Qa4 {[%clk 0:00:14]} 26. Nf3 {[%clk 0:01:09]}  Nxf4 {[%clk 0:00:10]} 27. Bxf4 {[%clk 0:01:08]}  Qxf4 {[%clk 0:00:11]} 28. e6 {[%clk 0:01:09]}  Qxg4+ {[%clk 0:00:09]} 29. Kh1 {[%clk 0:01:09]}  Qxe6 {[%clk 0:00:10]} 30. Qg2 {[%clk 0:01:07]}  Qc6 {[%clk 0:00:10]} 31. c4 {[%clk 0:01:04]}  Rd3 {[%clk 0:00:09]} 32. Qe2 {[%clk 0:00:55]}  Rcd8 {[%clk 0:00:08]} 33. Kg2 {[%clk 0:00:55]}  Ra3 {[%clk 0:00:06]} 34. Qxe7 {[%clk 0:00:54]}  Rdd3 {[%clk 0:00:07]} 35. Rcf2 {[%clk 0:00:53]}  h6 {[%clk 0:00:05]} 36. h4 {[%clk 0:00:50]}  Qe6 {[%clk 0:00:03]} 37. Qxe6 {[%clk 0:00:40]}  fxe6 {[%clk 0:00:04]} 38. Re1 {[%clk 0:00:40]}  Bd4 {[%clk 0:00:04]} 39. Nxd4 {[%clk 0:00:36]}  Rg3+ {[%clk 0:00:03]} 40. Kf1 {[%clk 0:00:35]}  cxd4 {[%clk 0:00:03]} 41. Rxe6 {[%clk 0:00:35]}  Rgf3 {[%clk 0:00:02]} 42. Rxg6+ {[%clk 0:00:32]}  Kh7 {[%clk 0:00:01]} 43. Rd6 {[%clk 0:00:30]}  Rxf2+ {[%clk 0:00:02]} 44. Kxf2 {[%clk 0:00:30]}  Rxa2+ {[%clk 0:00:03]} 45. Kf3 {[%clk 0:00:30]}  Rd2 {[%clk 0:00:04]} 46. Rd7+ {[%clk 0:00:30]}  Kg6 {[%clk 0:00:04]} 47. Rxb7 {[%clk 0:00:30]}  a5 {[%clk 0:00:05]} 48. Rb5 {[%clk 0:00:28]}  a4 {[%clk 0:00:05]} 49. Ra5 {[%clk 0:00:28]}  Ra2 {[%clk 0:00:04]} 50. Ke4 {[%clk 0:00:28]}  a3 {[%clk 0:00:03]} 51. Kxd4 {[%clk 0:00:27]}  Ra1 {[%clk 0:00:04]} 52. h5+ {[%clk 0:00:27]}  Kf6 {[%clk 0:00:04]} 53. Kc5 {[%clk 0:00:26]}  a2 {[%clk 0:00:04]} 54. Kc6 {[%clk 0:00:20]}  Rc1 {[%clk 0:00:04]} 55. Rxa2 {[%clk 0:00:19]}  Rxc4+ {[%clk 0:00:04]} 56. Kd5 {[%clk 0:00:19]}  Rf4 {[%clk 0:00:03]} 57. Rg2 {[%clk 0:00:17]}  Rf5+ {[%clk 0:00:03]} 58. Ke4 {[%clk 0:00:17]}  Rxh5 {[%clk 0:00:04]} 59. Kf4 {[%clk 0:00:17]}  Rf5+ {[%clk 0:00:04]} 60. Kg3 {[%clk 0:00:17]}  Rg5+ {[%clk 0:00:05]} 61. Kh2 {[%clk 0:00:18]}  Kf5 {[%clk 0:00:05]} 62. Rxg5+ {[%clk 0:00:16]}  hxg5 {[%clk 0:00:06]} 63. Kg3 {[%clk 0:00:16]}  g4 {[%clk 0:00:07]} 64. Kg2 {[%clk 0:00:16]}  Kg5 {[%clk 0:00:07]} 65. Kg3 {[%clk 0:00:17]}  Kf5 {[%clk 0:00:08]} 66. Kg2 {[%clk 0:00:17]}  Kf4 {[%clk 0:00:08]} 67. Kf2 {[%clk 0:00:17]}  Kg5 {[%clk 0:00:09]} 68. Kg3 {[%clk 0:00:18]}  Kh5 {[%clk 0:00:10]} 69. Kg2 {[%clk 0:00:17]}  Kh4 {[%clk 0:00:11]} 70. Kh2 {[%clk 0:00:18]}  Kg5 {[%clk 0:00:12]} 71. Kg3 {[%clk 0:00:18]} 1/2-1/2


[Site "https://www.chess.com"]

[Event "Titled Tuesday Blitz June 6 Late 2023"]
[White "Pace, Christopher"]
[Black "Principe, Gerson"]
[WhiteFideId "2610167"]
[BlackFideId "3804550"]
[WhiteElo "2317"]
[BlackElo "2229"]
[Result "0-1"]
[Round "1"]
[TimeControl "180+2"]
[Date "2023.06.07"]
[WhiteClock "0:01:47"]
[BlackClock "0:02:44"]
[Board "131"]

1. e4 {[%clk 0:02:57]}  c5 {[%clk 0:02:59]} 2. Nf3 {[%clk 0:02:53]}  e6 {[%clk 0:02:59]} 3. d4 {[%clk 0:02:34]}  cxd4 {[%clk 0:03:00]} 4. Nxd4 {[%clk 0:02:35]}  Nf6 {[%clk 0:03:00]} 5. Bd3 {[%clk 0:02:33]}  Nc6 {[%clk 0:03:00]} 6. Nxc6 {[%clk 0:02:29]}  bxc6 {[%clk 0:03:01]} 7. O-O {[%clk 0:02:29]}  d5 {[%clk 0:03:01]} 8. Qe2 {[%clk 0:02:25]}  Be7 {[%clk 0:03:01]} 9. Nc3 {[%clk 0:02:22]}  O-O {[%clk 0:03:01]} 10. Kh1 {[%clk 0:02:19]}  Nd7 {[%clk 0:02:59]} 11. f4 {[%clk 0:02:18]}  Nc5 {[%clk 0:03:00]} 12. Be3 {[%clk 0:02:09]}  d4 {[%clk 0:02:57]} 13. Rad1 {[%clk 0:01:46]}  dxe3 {[%clk 0:02:52]} 14. e5 {[%clk 0:01:47]}  Nxd3 {[%clk 0:02:52]} 15. Rxd3 {[%clk 0:01:47]}  Qb6 {[%clk 0:02:44]} 0-1


[Site "https://www.chess.com"]

[Event "Titled Tuesday Blitz June 6 Late 2023"]
[White "Bitoon, Richard"]
[Black "Celestino, Rafael Teixeira"]
[WhiteFideId "5201110"]
[BlackFideId "2108925"]
[WhiteElo "2374"]
[BlackElo "2316"]
[Result "1-0"]
[Round "1"]
[TimeControl "180+2"]
[Date "2023.06.07"]
[WhiteClock "0:00:18"]
[BlackClock "0:00:33"]
[Board "132"]

1. e4 {[%clk 0:02:44]}  e5 {[%clk 0:02:54]} 2. Nf3 {[%clk 0:02:43]}  Nc6 {[%clk 0:02:55]} 3. Bc4 {[%clk 0:02:44]}  Bc5 {[%clk 0:02:55]} 4. b4 {[%clk 0:02:44]}  Bxb4 {[%clk 0:02:55]} 5. c3 {[%clk 0:02:45]}  Be7 {[%clk 0:02:56]} 6. d4 {[%clk 0:02:45]}  d6 {[%clk 0:02:56]} 7. Qb3 {[%clk 0:02:45]}  Na5 {[%clk 0:02:12]} 8. Bxf7+ {[%clk 0:02:45]}  Kf8 {[%clk 0:02:12]} 9. Qa4 {[%clk 0:02:45]}  Kxf7 {[%clk 0:02:09]} 10. Qxa5 {[%clk 0:02:45]}  exd4 {[%clk 0:02:03]} 11. cxd4 {[%clk 0:02:37]}  Bg4 {[%clk 0:02:01]} 12. Qd5+ {[%clk 0:02:12]}  Kf8 {[%clk 0:01:50]} 13. Ng5 {[%clk 0:02:06]}  Bxg5 {[%clk 0:01:39]} 14. Bxg5 {[%clk 0:02:07]}  Nf6 {[%clk 0:01:40]} 15. Qxb7 {[%clk 0:02:07]}  Kf7 {[%clk 0:01:23]} 16. O-O {[%clk 0:01:44]}  h6 {[%clk 0:01:22]} 17. Bxf6 {[%clk 0:01:37]}  Kxf6 {[%clk 0:01:23]} 18. Nc3 {[%clk 0:01:36]}  Rb8 {[%clk 0:00:57]} 19. Nd5+ {[%clk 0:01:33]}  Kg6 {[%clk 0:00:55]} 20. Qxa7 {[%clk 0:01:25]}  c6 {[%clk 0:00:49]} 21. Ne7+ {[%clk 0:01:25]}  Kh7 {[%clk 0:00:46]} 22. Nxc6 {[%clk 0:01:25]}  Qb6 {[%clk 0:00:46]} 23. Qxb6 {[%clk 0:01:14]}  Rxb6 {[%clk 0:00:47]} 24. d5 {[%clk 0:01:11]}  Re8 {[%clk 0:00:45]} 25. f3 {[%clk 0:01:11]}  Bh5 {[%clk 0:00:43]} 26. a4 {[%clk 0:01:10]}  Ra8 {[%clk 0:00:42]} 27. a5 {[%clk 0:01:10]}  Rba6 {[%clk 0:00:42]} 28. Rfb1 {[%clk 0:01:09]}  Be8 {[%clk 0:00:43]} 29. Nd4 {[%clk 0:01:01]}  Rxa5 {[%clk 0:00:42]} 30. Rxa5 {[%clk 0:01:02]}  Rxa5 {[%clk 0:00:43]} 31. Nf5 {[%clk 0:01:03]}  Ra6 {[%clk 0:00:40]} 32. Rb7 {[%clk 0:01:03]}  Kg6 {[%clk 0:00:36]} 33. Rxg7+ {[%clk 0:01:02]}  Kf6 {[%clk 0:00:37]} 34. Rh7 {[%clk 0:01:01]}  Ke5 {[%clk 0:00:35]} 35. Re7+ {[%clk 0:00:59]}  Kf4 {[%clk 0:00:35]} 36. Rxe8 {[%clk 0:00:56]}  h5 {[%clk 0:00:35]} 37. h3 {[%clk 0:00:33]}  h4 {[%clk 0:00:34]} 38. Nxh4 {[%clk 0:00:31]}  Ke3 {[%clk 0:00:34]} 39. Nf5+ {[%clk 0:00:30]}  Ke2 {[%clk 0:00:33]} 40. Re6 {[%clk 0:00:30]}  Ra1+ {[%clk 0:00:33]} 41. Kh2 {[%clk 0:00:30]}  Kf2 {[%clk 0:00:34]} 42. Nh4 {[%clk 0:00:21]}  Ra6 {[%clk 0:00:33]} 43. Rg6 {[%clk 0:00:20]}  Rb6 {[%clk 0:00:32]} 44. f4 {[%clk 0:00:20]}  Ke3 {[%clk 0:00:31]} 45. Rxd6 {[%clk 0:00:20]}  Rb2 {[%clk 0:00:30]} 46. Re6 {[%clk 0:00:18]}  Kxf4 {[%clk 0:00:30]} 47. d6 {[%clk 0:00:17]}  Rd2 {[%clk 0:00:28]} 48. e5 {[%clk 0:00:18]}  Kg5 {[%clk 0:00:29]} 49. Nf3+ {[%clk 0:00:17]}  Kf4 {[%clk 0:00:29]} 50. Nxd2 {[%clk 0:00:18]}  Kf5 {[%clk 0:00:30]} 51. Re8 {[%clk 0:00:17]}  Kg6 {[%clk 0:00:30]} 52. d7 {[%clk 0:00:17]}  Kf7 {[%clk 0:00:31]} 53. d8=Q {[%clk 0:00:17]}  Kg6 {[%clk 0:00:32]} 54. Qf6+ {[%clk 0:00:18]}  Kh5 {[%clk 0:00:33]} 55. Rh8# {[%clk 0:00:18]} 1-0


[Site "https://www.chess.com"]

[Event "Titled Tuesday Blitz June 6 Late 2023"]
[White "Ward, Ieuan C"]
[Black "Piesik, Piotr"]
[WhiteFideId "406627"]
[BlackFideId "1136194"]
[WhiteElo "2313"]
[BlackElo "2303"]
[Result "0-1"]
[Round "1"]
[TimeControl "180+2"]
[Date "2023.06.07"]
[WhiteClock "0:02:28"]
[BlackClock "0:02:48"]
[Board "133"]

1. d4 {[%clk 0:03:00]}  c5 {[%clk 0:02:57]} 2. d5 {[%clk 0:03:00]}  e5 {[%clk 0:02:57]} 3. c4 {[%clk 0:03:00]}  d6 {[%clk 0:02:58]} 4. Nc3 {[%clk 0:03:00]}  Be7 {[%clk 0:02:58]} 5. e4 {[%clk 0:03:00]}  Bg5 {[%clk 0:02:58]} 6. Bd3 {[%clk 0:02:58]}  Bxc1 {[%clk 0:02:58]} 7. Rxc1 {[%clk 0:02:58]}  Ne7 {[%clk 0:02:59]} 8. Nge2 {[%clk 0:02:57]}  O-O {[%clk 0:02:59]} 9. O-O {[%clk 0:02:58]}  Nd7 {[%clk 0:02:58]} 10. h3 {[%clk 0:02:57]}  Ng6 {[%clk 0:02:58]} 11. f4 {[%clk 0:02:56]}  exf4 {[%clk 0:02:58]} 12. Nxf4 {[%clk 0:02:57]}  Nxf4 {[%clk 0:02:57]} 13. Rxf4 {[%clk 0:02:57]}  Ne5 {[%clk 0:02:58]} 14. Qd2 {[%clk 0:02:53]}  Qg5 {[%clk 0:02:51]} 15. Rf2 {[%clk 0:02:28]}  Nf3+ {[%clk 0:02:48]} 0-1


[Site "https://www.chess.com"]

[Event "Titled Tuesday Blitz June 6 Late 2023"]
[White "Bagrationi, Alexander"]
[Black "Spichkin, Alexander"]
[WhiteFideId "14104954"]
[BlackFideId "4144074"]
[WhiteElo "2366"]
[BlackElo "1986"]
[Result "1/2-1/2"]
[Round "1"]
[TimeControl "180+2"]
[Date "2023.06.07"]
[WhiteClock "0:00:53"]
[BlackClock "0:00:37"]
[Board "136"]

1. e4 {[%clk 0:02:59]}  e5 {[%clk 0:02:59]} 2. Nf3 {[%clk 0:02:59]}  d5 {[%clk 0:02:59]} 3. Nxe5 {[%clk 0:02:55]}  Bd6 {[%clk 0:02:50]} 4. d4 {[%clk 0:02:50]}  dxe4 {[%clk 0:02:49]} 5. Nc4 {[%clk 0:02:50]}  Nf6 {[%clk 0:02:48]} 6. Nc3 {[%clk 0:02:47]}  Nc6 {[%clk 0:02:48]} 7. Bg5 {[%clk 0:02:45]}  Be7 {[%clk 0:02:42]} 8. d5 {[%clk 0:02:42]}  Nb4 {[%clk 0:02:40]} 9. Bxf6 {[%clk 0:02:39]}  Bxf6 {[%clk 0:02:40]} 10. Nxe4 {[%clk 0:02:39]}  O-O {[%clk 0:02:37]} 11. Nxf6+ {[%clk 0:02:30]}  Qxf6 {[%clk 0:02:37]} 12. c3 {[%clk 0:02:30]}  Re8+ {[%clk 0:02:32]} 13. Ne3 {[%clk 0:02:29]}  Na6 {[%clk 0:02:22]} 14. Bxa6 {[%clk 0:02:26]}  Qxa6 {[%clk 0:02:21]} 15. Qe2 {[%clk 0:02:26]}  Qd6 {[%clk 0:02:17]} 16. O-O {[%clk 0:02:25]}  Qxd5 {[%clk 0:02:17]} 17. Nxd5 {[%clk 0:02:20]}  Rxe2 {[%clk 0:02:16]} 18. Nxc7 {[%clk 0:02:20]}  Rb8 {[%clk 0:02:15]} 19. Rfe1 {[%clk 0:02:20]}  Rxe1+ {[%clk 0:02:12]} 20. Rxe1 {[%clk 0:02:20]}  Bf5 {[%clk 0:02:12]} 21. Re8+ {[%clk 0:02:18]}  Rxe8 {[%clk 0:02:12]} 22. Nxe8 {[%clk 0:02:19]}  Be6 {[%clk 0:01:55]} 23. Nd6 {[%clk 0:02:17]}  b6 {[%clk 0:01:54]} 24. a4 {[%clk 0:02:11]}  a5 {[%clk 0:01:51]} 25. f3 {[%clk 0:01:58]}  Kf8 {[%clk 0:01:51]} 26. Kf2 {[%clk 0:01:56]}  Ke7 {[%clk 0:01:52]} 27. Ne4 {[%clk 0:01:47]}  Bb3 {[%clk 0:01:51]} 28. Ke3 {[%clk 0:01:42]}  Bxa4 {[%clk 0:01:51]} 29. Kd4 {[%clk 0:01:42]}  Bc6 {[%clk 0:01:49]} 30. Nd2 {[%clk 0:01:42]}  Kd6 {[%clk 0:01:45]} 31. Nc4+ {[%clk 0:01:42]}  Kc7 {[%clk 0:01:45]} 32. Ne5 {[%clk 0:01:43]}  Be8 {[%clk 0:01:44]} 33. h4 {[%clk 0:01:42]}  f6 {[%clk 0:01:40]} 34. Nd3 {[%clk 0:01:42]}  Kd6 {[%clk 0:01:39]} 35. g4 {[%clk 0:01:37]}  Bc6 {[%clk 0:01:31]} 36. f4 {[%clk 0:01:37]}  Bd7 {[%clk 0:01:29]} 37. f5 {[%clk 0:01:36]}  h5 {[%clk 0:01:29]} 38. gxh5 {[%clk 0:01:17]}  Bxf5 {[%clk 0:01:29]} 39. Nf4 {[%clk 0:01:17]}  Bg4 {[%clk 0:01:21]} 40. Ke4 {[%clk 0:01:16]}  b5 {[%clk 0:01:18]} 41. Kd4 {[%clk 0:01:15]}  Bf3 {[%clk 0:01:16]} 42. Ke3 {[%clk 0:01:15]}  Bg4 {[%clk 0:01:15]} 43. Kd4 {[%clk 0:01:15]}  Bf3 {[%clk 0:01:15]} 44. c4 {[%clk 0:01:13]}  b4 {[%clk 0:01:11]} 45. c5+ {[%clk 0:01:11]}  Kc6 {[%clk 0:01:11]} 46. Ne6 {[%clk 0:01:11]}  Bxh5 {[%clk 0:01:06]} 47. Nxg7 {[%clk 0:01:10]}  Bg6 {[%clk 0:01:04]} 48. h5 {[%clk 0:01:09]}  Bh7 {[%clk 0:01:04]} 49. Ne6 {[%clk 0:01:07]}  a4 {[%clk 0:01:04]} 50. Kc4 {[%clk 0:01:06]}  Bg8 {[%clk 0:01:01]} 51. Kxb4 {[%clk 0:01:06]}  Bxe6 {[%clk 0:01:01]} 52. h6 {[%clk 0:01:06]}  Bg8 {[%clk 0:01:01]} 53. Kxa4 {[%clk 0:01:04]}  Kxc5 {[%clk 0:01:01]} 54. b4+ {[%clk 0:01:05]}  Kb6 {[%clk 0:00:59]} 55. b5 {[%clk 0:01:02]}  f5 {[%clk 0:00:53]} 56. Kb4 {[%clk 0:01:02]}  Bh7 {[%clk 0:00:41]} 57. Kc4 {[%clk 0:01:01]}  Bg6 {[%clk 0:00:41]} 58. Kb4 {[%clk 0:00:57]}  Bh7 {[%clk 0:00:40]} 59. Kc4 {[%clk 0:00:57]}  Bg8+ {[%clk 0:00:37]} 60. Kb4 {[%clk 0:00:53]}  Bh7 {[%clk 0:00:37]} 1/2-1/2


[Site "https://www.chess.com"]

[Event "Titled Tuesday Blitz June 6 Late 2023"]
[White "Melian, Juan Sebastian"]
[Black "Kostiukov, Alexandr"]
[WhiteFideId "3706575"]
[BlackFideId "14108100"]
[WhiteElo "2092"]
[BlackElo "2202"]
[Result "1-0"]
[Round "1"]
[TimeControl "180+2"]
[Date "2023.06.07"]
[WhiteClock "0:00:34"]
[BlackClock "0:00:05"]
[Board "138"]

1. d4 {[%clk 0:02:34]}  g6 {[%clk 0:02:59]} 2. c4 {[%clk 0:02:34]}  Bg7 {[%clk 0:03:00]} 3. Nc3 {[%clk 0:02:34]}  d6 {[%clk 0:03:00]} 4. e4 {[%clk 0:02:34]}  e5 {[%clk 0:03:00]} 5. Nge2 {[%clk 0:02:34]}  exd4 {[%clk 0:03:00]} 6. Nxd4 {[%clk 0:02:35]}  Nc6 {[%clk 0:03:00]} 7. Be3 {[%clk 0:02:35]}  Nge7 {[%clk 0:03:00]} 8. Qd2 {[%clk 0:02:33]}  O-O {[%clk 0:03:00]} 9. O-O-O {[%clk 0:02:33]}  f5 {[%clk 0:03:00]} 10. exf5 {[%clk 0:02:30]}  Bxd4 {[%clk 0:02:33]} 11. Bxd4 {[%clk 0:02:29]}  Nxf5 {[%clk 0:02:34]} 12. Be3 {[%clk 0:02:28]}  Nxe3 {[%clk 0:02:33]} 13. Qxe3 {[%clk 0:02:28]}  Qf6 {[%clk 0:02:18]} 14. Nd5 {[%clk 0:02:26]}  Qxf2 {[%clk 0:02:16]} 15. Qxf2 {[%clk 0:02:25]}  Rxf2 {[%clk 0:02:16]} 16. Nxc7 {[%clk 0:02:25]}  Bf5 {[%clk 0:02:02]} 17. Rd2 {[%clk 0:02:24]}  Rxd2 {[%clk 0:02:00]} 18. Kxd2 {[%clk 0:02:25]}  Rc8 {[%clk 0:01:59]} 19. Nd5 {[%clk 0:02:24]}  Kg7 {[%clk 0:01:51]} 20. b3 {[%clk 0:02:09]}  a5 {[%clk 0:01:41]} 21. Be2 {[%clk 0:02:08]}  Nb4 {[%clk 0:01:37]} 22. Nc3 {[%clk 0:02:02]}  d5 {[%clk 0:01:09]} 23. cxd5 {[%clk 0:02:03]}  Nxa2 {[%clk 0:01:03]} 24. Nxa2 {[%clk 0:01:49]}  Rc2+ {[%clk 0:01:02]} 25. Ke3 {[%clk 0:01:49]}  Rxa2 {[%clk 0:01:03]} 26. Rc1 {[%clk 0:01:48]}  Kf6 {[%clk 0:00:52]} 27. g4 {[%clk 0:00:56]}  Bc2 {[%clk 0:00:41]} 28. Bc4 {[%clk 0:00:48]}  Ke5 {[%clk 0:00:34]} 29. Re1 {[%clk 0:00:36]}  Kd6 {[%clk 0:00:16]} 30. Kd4 {[%clk 0:00:35]}  b5 {[%clk 0:00:07]} 31. Re6+ {[%clk 0:00:34]}  Kc7 {[%clk 0:00:07]} 32. Bxb5 {[%clk 0:00:34]}  Bxb3 {[%clk 0:00:05]} 33. d6+ {[%clk 0:00:34]} 1-0


[Site "https://www.chess.com"]

[Event "Titled Tuesday Blitz June 6 Late 2023"]
[White "Weisz, Bryan"]
[Black "Mendez Fortes, Eduardo Jesus"]
[WhiteFideId "30934133"]
[BlackFideId "3502376"]
[WhiteElo "2300"]
[BlackElo "2307"]
[Result "1-0"]
[Round "1"]
[TimeControl "180+2"]
[Date "2023.06.07"]
[WhiteClock "0:00:17"]
[BlackClock "0:00:06"]
[Board "139"]

1. e4 {[%clk 0:02:59]}  c5 {[%clk 0:02:59]} 2. d4 {[%clk 0:02:59]}  cxd4 {[%clk 0:02:59]} 3. Ne2 {[%clk 0:02:59]}  d6 {[%clk 0:02:58]} 4. Nxd4 {[%clk 0:02:59]}  Nf6 {[%clk 0:02:56]} 5. Nc3 {[%clk 0:02:59]}  a6 {[%clk 0:02:57]} 6. g3 {[%clk 0:02:56]}  e5 {[%clk 0:02:56]} 7. Nde2 {[%clk 0:02:57]}  Be7 {[%clk 0:02:55]} 8. Bg2 {[%clk 0:02:57]}  O-O {[%clk 0:02:55]} 9. O-O {[%clk 0:02:57]}  Nbd7 {[%clk 0:02:46]} 10. a4 {[%clk 0:02:49]}  b6 {[%clk 0:02:46]} 11. Be3 {[%clk 0:02:37]}  Bb7 {[%clk 0:02:45]} 12. h3 {[%clk 0:02:30]}  Nc5 {[%clk 0:02:45]} 13. Nd5 {[%clk 0:02:19]}  Nfxe4 {[%clk 0:02:26]} 14. b4 {[%clk 0:02:11]}  Bxd5 {[%clk 0:02:16]} 15. Qxd5 {[%clk 0:02:10]}  Rc8 {[%clk 0:01:56]} 16. Bxe4 {[%clk 0:01:58]}  Nxe4 {[%clk 0:01:49]} 17. Qxe4 {[%clk 0:01:58]}  Qd7 {[%clk 0:01:49]} 18. Kg2 {[%clk 0:01:34]}  d5 {[%clk 0:01:47]} 19. Qxe5 {[%clk 0:01:31]}  Bf6 {[%clk 0:01:46]} 20. Qf4 {[%clk 0:01:22]}  Bxa1 {[%clk 0:01:45]} 21. Rxa1 {[%clk 0:01:22]}  Rc4 {[%clk 0:01:37]} 22. Qf3 {[%clk 0:01:14]}  Rxb4 {[%clk 0:01:32]} 23. Rd1 {[%clk 0:01:11]}  Qxa4 {[%clk 0:01:24]} 24. Rxd5 {[%clk 0:01:05]}  Qxc2 {[%clk 0:01:17]} 25. Rd6 {[%clk 0:01:00]}  a5 {[%clk 0:00:30]} 26. Bxb6 {[%clk 0:00:51]}  a4 {[%clk 0:00:27]} 27. Nd4 {[%clk 0:00:46]}  Qc4 {[%clk 0:00:13]} 28. Nc6 {[%clk 0:00:38]}  Rb3 {[%clk 0:00:09]} 29. Ne7+ {[%clk 0:00:33]}  Kh8 {[%clk 0:00:10]} 30. Qd1 {[%clk 0:00:27]}  Qe4+ {[%clk 0:00:09]} 31. Kh2 {[%clk 0:00:19]}  Qxe7 {[%clk 0:00:09]} 32. Bc5 {[%clk 0:00:18]}  Qb7 {[%clk 0:00:08]} 33. Rd8 {[%clk 0:00:17]}  Rb1 {[%clk 0:00:06]} 34. Rxf8# {[%clk 0:00:17]} 1-0


[Site "https://www.chess.com"]